bitfinex-derivatives/quotes_ETHF0:USTF0_20250926
["timestamp","ask_amount","ask_price","bid_price","bid_amount"]
[1758914477601,0.2076,4036.3,4036.2,0.4366]
[1758914477802,0.5466,4036.3,4036.2,1.21397139]
[1758914478208,0.7575,4036.3,4036.2,0.88467139]
[1758914480209,3.6799,4036.5,4036.4,0.44558]
[1758914480404,3.8875,4036.5,4036.4,1.21148]
[1758914480905,4.0984,4036.5,4036.4,0.88218]
[1758914481612,0.8906,4036.5,4036.4,0.88218]
[1758914481807,0.5466,4036.5,4036.4,1.21148]
[1758914482211,3.3409,4037.0,4036.9,0.44552]
[1758914482406,3.2078,4037.0,4036.9,1.21142]
[1758914483411,4.0984,4037.0,4036.9,1.13512]
[1758914484109,0.8906,4037.0,4036.9,0.88212]
[1758914484304,0.8906,4037.0,4036.9,0.65872]
[1758914484500,0.339,4036.9,4036.7,0.44555]
[1758914484704,0.339,4036.7,4036.5,0.44557]
[1758914484898,0.7575,4036.4,4036.3,0.44558]
[1758914485311,0.7575,4036.4,4036.2,0.00246139]
[1758914485511,0.4185,4036.4,4036.2,0.44806139]
[1758914485708,0.7575,4036.3,4036.2,0.00246139]
[1758914486015,0.7575,4035.9,4035.8,0.44565]
[1758914486209,0.8906,4035.5,4035.4,1.3306768]
[1758914486408,0.5466,4035.5,4035.4,1.6599768]
[1758914486707,0.5466,4035.5,4035.4,1.46559]
[1758914487206,0.5466,4035.5,4035.4,1.46855947]
[1758914488715,0.8906,4035.5,4035.4,0.88525947]
[1758914489608,0.8906,4035.5,4035.4,0.44865947]
[1758914489917,0.8906,4035.5,4035.4,0.66185947]
[1758914490116,0.8906,4035.5,4035.4,0.88525947]
[1758914491317,0.8906,4035.5,4035.4,0.66185947]
[1758914491711,0.5466,4035.5,4035.4,1.21455947]
[1758914492017,4.0984,4036.0,4035.9,0.65884]
[1758914492213,4.0984,4036.0,4035.9,0.44564]
[1758914492806,4.0984,4036.0,4035.9,0.65884]
[1758914493116,0.8906,4035.5,4035.4,0.00296947]
[1758914493315,4.0984,4035.5,4035.4,0.44865947]
[1758914493520,4.0984,4035.5,4035.4,0.66185947]
[1758914495118,4.0984,4035.5,4035.4,0.44865947]
[1758914495419,4.0984,4035.5,4035.4,0.66185947]
[1758914495916,0.8906,4035.5,4035.4,0.44865947]
[1758914496411,0.8906,4035.5,4035.4,0.66185947]
[1758914497115,0.5466,4035.5,4035.4,1.21455947]
[1758914497819,3.7594,4036.0,4035.9,0.65884]
[1758914498007,3.7594,4036.0,4035.9,0.88224]
[1758914498513,4.0984,4036.0,4035.9,0.44564]
[1758914499112,0.8906,4035.5,4035.4,0.44865947]
[1758914500819,0.8906,4035.5,4035.4,0.88525947]
[1758914501412,0.8906,4035.5,4035.4,1.21455947]
[1758914502221,0.4606,4035.9,4035.8,0.44565]
[1758914502524,3.7524,4036.5,4036.4,0.44558]
[1758914502820,4.3301,4036.5,4036.4,0.44558]
[1758914504123,4.3301,4036.5,4036.4,0.66098]
[1758914504424,0.3237,4036.2,4036.1,0.44561]
[1758914504717,0.7352,4036.1,4036.0,0.44562]
[1758914504924,0.8668,4036.0,4035.9,0.44563]
[1758914507431,0.8668,4036.0,4035.9,0.66103]
[1758914510021,0.8668,4036.0,4035.9,0.88703]
[1758914511930,4.3301,4036.5,4036.4,0.66098]
[1758914514230,4.85956509,4036.5,4036.4,0.66098]
[1758914515132,4.3301,4036.5,4036.4,0.66098]
[1758914515334,4.85948883,4036.5,4036.4,0.66098]
[1758914516435,4.8594142,4036.5,4036.4,0.44558]
[1758914516624,0.3237,4036.4,4036.0,1.11407]
[1758914516934,0.7352,4036.1,4036.0,0.88702]
[1758914518437,0.7352,4036.1,4036.0,1.14002]
[1758914518635,0.7352,4036.1,4036.0,1.45522]
[1758914519130,0.7352,4036.1,4036.0,1.20222]
[1758914519330,0.5303,4036.1,4036.0,1.45522]
[1758914520534,3.3409,4036.5,4036.4,0.44558]
[1758914520736,3.7524,4036.5,4036.4,0.44558]
[1758914521235,4.0761,4036.5,4036.4,0.66098]
[1758914521738,4.0761,4036.5,4036.4,0.88698]
[1758914522440,4.0761,4036.5,4036.4,0.44558]
[1758914522737,4.0761,4036.5,4036.4,0.88698]
[1758914523326,4.0761,4036.5,4036.4,1.20218]
[1758914523531,4.0761,4036.5,4036.4,0.44558]
[1758914524935,0.7352,4035.9,4035.8,0.44565]
[1758914525730,0.8668,4035.5,4035.4,0.00296947]
[1758914525935,0.8668,4035.5,4035.4,0.44865947]
[1758914526130,0.8668,4035.5,4035.4,0.00296947]
[1758914526343,1.39961541,4035.5,4035.4,0.44865947]
[1758914526745,1.84529541,4035.5,4035.4,0.00296947]
[1758914526945,0.7628,4034.8,4034.7,0.44577]
[1758914527841,0.7628,4034.8,4034.7,0.44890519]
[1758914528332,0.7628,4034.8,4034.7,0.87800519]
[1758914528730,0.7628,4034.8,4034.7,1.20200519]
[1758914529036,0.3336,4035.0,4034.9,1.19885]
[1758914529733,1.1474,4035.5,4035.4,0.65829]
[1758914530742,1.1474,4035.5,4035.4,0.87479]
[1758914531137,0.8944,4035.5,4035.4,1.19879]
[1758914532232,0.3336,4035.5,4035.4,1.19879]
[1758914532544,3.2078,4035.6,4035.4,1.19879]
[1758914532545,3.2078,4035.6,4035.5,0.7518]
[1758914532745,3.7627,4035.6,4035.5,0.7518]
[1758914533043,3.5409,4035.6,4035.5,1.19748]
[1758914533544,3.9685,4035.6,4035.5,0.87698]
[1758914534045,3.9685,4035.6,4035.5,1.19748]
[1758914535636,0.7607,4035.6,4035.5,1.19748]
[1758914537539,0.2218,4036.0,4035.9,1.19744]
[1758914537742,0.5607,4036.5,4036.4,0.66208]
[1758914538144,0.8938,4036.5,4036.4,0.66208]
[1758914538344,0.8938,4036.5,4036.4,0.44558]
[1758914538838,0.5607,4036.5,4036.4,0.44558]
[1758914539142,0.8846,4035.5,4035.4,3.86999]
[1758914539349,0.8846,4035.5,4035.4,4.12299]
[1758914540141,0.8846,4035.5,4035.4,4.33779]
[1758914540342,0.8846,4035.5,4035.4,4.40529]
[1758914540543,0.8846,4035.5,4035.4,4.65829]
[1758914541947,0.5549,4035.5,4035.4,4.65829]
[1758914542149,0.8846,4036.0,4035.9,0.66214]
[1758914544144,0.1331,4036.5,4036.4,0.66208]
[1758914544145,0.8938,4036.5,4036.4,0.66208]
[1758914545741,0.5515,4036.0,4035.9,0.66214]
[1758914545937,0.8846,4036.0,4035.9,0.44564]
[1758914547942,0.8846,4036.0,4035.7,0.44565]
[1758914548148,0.7607,4035.8,4035.7,0.44565]
[1758914549443,0.7607,4035.8,4035.7,1.19745]
[1758914549950,0.7607,4035.8,4035.7,0.44565]
[1758914550437,0.1239,4035.5,4035.0,1.11434]
[1758914550642,0.7607,4035.1,4035.0,0.91523]
[1758914550844,0.7607,4035.1,4035.0,0.66223]
[1758914551051,0.8846,4035.0,4034.9,3.2078]
[1758914551252,0.8846,4035.0,4034.9,3.87005]
[1758914551848,0.8846,4035.0,4034.9,4.08485]
[1758914552050,0.8846,4035.5,4035.4,0.87699]
[1758914553054,0.5515,4036.0,4035.9,0.87694]
[1758914553548,0.8846,4036.0,4035.9,0.66214]
[1758914554543,3.2078,4036.2,4035.9,0.7518]
[1758914554746,0.3331,4036.4,4036.3,1.19739]
[1758914555453,0.5549,4036.4,4036.3,1.19739]
[1758914556346,0.7607,4036.4,4036.3,0.87689]
[1758914556744,0.7607,4036.4,4036.3,0.66209]
[1758914558152,0.7607,4036.4,4036.3,1.19739]
[1758914558955,0.7607,4036.4,4036.3,0.87689]
[1758914559152,0.5549,4036.4,4036.3,1.19739]
[1758914559350,3.2078,4036.7,4036.6,0.7518]
[1758914559351,3.7627,4036.7,4036.6,0.7518]
[1758914559555,3.7627,4036.7,4036.6,1.19736]
[1758914560150,3.2078,4036.7,4036.6,1.45036]
[1758914560345,0.3331,4037.1,4037.0,0.44551]
[1758914560559,3.7627,4037.2,4037.1,0.8768]
[1758914560760,3.7627,4037.2,4037.1,1.1973]
[1758914561348,3.9685,4037.2,4037.1,0.8768]
[1758914563262,0.7607,4037.2,4037.1,0.8768]
[1758914563753,0.7607,4037.2,4037.1,0.8761]
[1758914563957,0.12628367,4037.5,4037.4,0.44547]
[1758914564157,0.12628367,4037.5,4037.4,1.44057]
[1758914564352,0.00238367,4037.5,4037.4,1.44057]
[1758914565659,0.2068,4036.7,4036.6,3.2078]
[1758914565856,0.722,4036.7,4036.6,3.90636]
[1758914566054,0.722,4036.7,4036.6,0.44556]
[1758914566361,0.722,4036.7,4036.6,0.69856]
[1758914566764,0.722,4036.7,4036.6,1.44066]
[1758914566959,0.722,4036.7,4036.6,1.12916]
[1758914567962,0.722,4036.7,4036.6,0.44556]
[1758914569665,0.722,4036.7,4036.6,0.69856]
[1758914569857,0.722,4036.7,4036.6,0.44556]
[1758914572259,0.5152,4036.2,4036.1,3.2078]
[1758914572457,0.722,4036.2,4036.1,3.2078]
[1758914572866,0.722,4036.2,4036.1,3.65341]
[1758914573861,0.1334,4036.5,4036.4,0.44558]
[1758914574066,3.2078,4036.8,4036.2,0.3115]
[1758914574067,3.6184,4036.8,4036.7,0.65395]
[1758914574268,3.6184,4036.8,4036.7,0.44555]
[1758914574472,3.9298,4036.8,4036.7,0.65395]
[1758914574767,3.9298,4036.8,4036.7,0.87615]
[1758914575160,3.9298,4036.8,4036.7,1.18765]
[1758914575466,3.726,4036.8,4036.7,1.18765]
[1758914575761,3.2078,4036.8,4036.7,1.18765]
[1758914577467,0.722,4037.2,4037.1,0.4455]
[1758914578363,0.4106,4036.7,4036.6,0.2084]
[1758914578563,0.4106,4036.7,4036.6,0.4614]
[1758914578765,0.4106,4036.7,4036.6,0.90696]
[1758914578961,0.722,4036.7,4036.6,1.12916]
[1758914579467,0.1334,4037.0,4036.9,0.44553]
[1758914579765,0.544,4037.0,4036.9,0.87613]
[1758914579957,0.544,4037.0,4036.9,0.44553]
[1758914580157,0.8554,4037.0,4036.9,0.44553]
[1758914580762,0.2068,4036.5,4036.4,1.44068]
[1758914580965,0.8554,4037.0,4036.9,0.65393]
[1758914582771,0.5182,4037.0,4036.9,1.18763]
[1758914582970,0.3114,4037.0,4036.9,1.18763]
[1758914583165,0.8554,4037.0,4036.9,0.87613]
[1758914583467,0.8554,4037.0,4036.9,0.65393]
[1758914587268,0.3114,4037.0,4036.9,1.21153]
[1758914587570,0.13578367,4037.5,4036.9,1.21153]
[1758914587571,0.00238367,4037.5,4037.4,1.22087]
[1758914587764,0.00238367,4037.5,4037.4,4.68167]
[1758914589271,3.2078,4038.3,4038.2,1.22078]
[1758914589475,0.31,4038.7,4038.6,0.44534]
[1758914589772,3.4608,4039.4,4038.6,0.44534]
[1758914589773,0.31,4038.9,4038.8,0.7754]
[1758914590173,0.5188,4038.9,4038.8,0.7754]
[1758914590368,0.52141646,4038.9,4038.8,0.77767428]
[1758914592067,0.31261646,4038.9,4038.8,0.77767428]
[1758914592374,0.00261646,4038.9,4038.8,0.77767428]
[1758914592579,3.5263,4040.4,4039.8,1.20351]
[1758914592769,3.5263,4040.4,4040.3,0.65185]
[1758914592770,0.7449,4040.4,4040.3,0.65185]
[1758914592967,3.9527,4040.4,4040.2,0.253]
[1758914593178,3.9527,4040.4,4040.2,0.69816]
[1758914593179,0.7449,4040.3,4040.2,0.69816]
[1758914593679,0.74804586,4040.3,4040.2,0.69816]
[1758914594076,0.74804586,4040.3,4040.2,0.44516]
[1758914594381,0.74804586,4040.3,4040.2,0.65186]
[1758914594580,0.00314586,4040.3,4040.2,1.20346]
[1758914598282,0.53904586,4040.3,4040.2,1.20346]
[1758914598582,0.53904586,4040.3,4040.2,1.45646]
[1758914601578,0.00314586,4040.3,4040.2,1.45646]
[1758914601784,0.00314586,4040.3,4040.2,6.50444997]
[1758914602978,0.5359,4041.0,4040.9,1.20338]
[1758914603278,0.5359,4041.0,4040.9,1.45638]
[1758914603279,0.3185,4041.0,4040.9,1.45638]
[1758914603471,0.1235,4041.5,4041.0,0.7583]
[1758914603678,0.5359,4041.3,4041.2,1.20335]
[1758914603880,0.5359,4041.3,4041.2,1.45635]
[1758914604079,0.7466929,4041.3,4041.2,1.12995]
[1758914605090,0.7466929,4041.3,4041.2,0.69805]
[1758914607599,0.7466929,4041.3,4041.2,0.90475]
[1758914607793,0.7466929,4041.3,4041.2,1.12995]
[1758914607991,0.5376929,4041.3,4041.2,1.45635]
[1758914608194,0.3202929,4041.3,4041.2,1.45635]
[1758914609398,0.5376929,4041.3,4041.2,1.45635]
[1758914610200,0.5376929,4041.3,4041.2,1.20335]
[1758914610701,0.7466929,4041.3,4041.2,1.12995]
[1758914610993,0.7466929,4041.3,4041.2,0.65175]
[1758914611195,0.7466929,4041.3,4041.2,0.90475]
[1758914613099,0.5376929,4041.3,4041.2,1.45635]
[1758914613299,0.3202929,4041.3,4041.2,1.45635]
[1758914613996,0.5376929,4041.3,4041.2,1.45635]
[1758914614201,0.3202929,4041.3,4041.2,1.45635]
[1758914615001,0.5376929,4041.3,4041.2,1.45635]
[1758914615491,0.7466929,4041.3,4041.2,1.12995]
[1758914617405,0.7466929,4041.3,4041.2,1.12995]
[1758914618400,0.7466929,4041.3,4041.2,0.87695]
[1758914618704,0.7466929,4041.3,4041.2,1.12995]
[1758914618900,0.7466929,4041.3,4041.2,1.45635]
[1758914619302,1.28654122,4041.3,4041.2,0.87695]
[1758914619506,1.28654122,4041.3,4041.2,1.12995]
[1758914620606,0.96804122,4041.3,4041.2,0.253]
[1758914620902,1.28654122,4041.3,4041.2,0.253]
[1758914621609,1.28654122,4041.3,4041.2,0.69805]
[1758914622502,0.7385,4041.2,4041.1,0.44506]
[1758914622699,1.27834832,4041.2,4041.1,0.253]
[1758914622893,1.27834832,4041.2,4041.1,0.4645]
[1758914623606,1.27834832,4041.2,4041.1,0.90956]
[1758914624205,0.96494832,4041.2,4041.0,0.44507]
[1758914624407,0.7385,4040.6,4040.5,3.4193]
[1758914624611,0.7385,4040.6,4040.5,0.90963]
[1758914625003,0.7385,4040.6,4040.5,1.11423]
[1758914625604,0.7385,4040.6,4040.5,1.45013]
[1758914626108,0.7385,4040.6,4040.5,1.11423]
[1758914626701,0.7385,4040.6,4040.5,1.45013]
[1758914628512,0.87024,4040.4,4040.0,4.54077664]
[1758914628813,0.7385,4040.2,4040.1,0.69817]
[1758914629108,0.7385,4040.2,4040.1,0.4645]
[1758914629307,0.7385,4040.2,4040.1,0.253]
[1758914629698,0.7385,4040.2,4040.1,0.69817]
[1758914629998,0.7385,4040.2,4040.1,0.44517]
[1758914630206,0.7385,4040.1,4040.0,0.44518]
[1758914630507,0.3134,4040.1,4040.0,1.45018]
[1758914631616,0.8675,4040.5,4040.4,1.19714]
[1758914631912,3.2078,4040.6,4040.5,1.19713]
[1758914632910,3.2078,4040.6,4040.5,1.31303]
[1758914633207,0.3134,4040.8,4040.7,0.86121]
[1758914633513,0.5198,4040.8,4040.7,3.21685184]
[1758914634211,0.0017929,4041.3,4041.2,1.19705]
[1758914634513,0.0017929,4041.3,4041.2,3.21679184]
[1758914635207,0.7402929,4041.3,4041.2,1.11415]
[1758914635805,0.7402929,4041.3,4041.2,2.62789184]
[1758914636008,0.7402929,4041.3,4041.2,2.88089184]
[1758914636912,0.7402929,4041.3,4041.2,2.62789184]
[1758914637116,0.7402929,4041.3,4041.2,2.88089184]
[1758914637317,0.5215929,4041.3,4041.2,3.21679184]
[1758914637518,0.0017929,4041.3,4041.2,3.21679184]
[1758914639117,0.5215929,4041.3,4041.2,3.21679184]
[1758914639609,0.7402929,4041.3,4041.2,2.88089184]
[1758914639809,0.7402929,4041.3,4041.2,1.11415]
[1758914640006,0.7402929,4041.3,4041.1,3.2078]
[1758914640212,0.7402929,4041.3,4040.7,1.33297664]
[1758914640213,0.7385,4040.7,4040.6,0.2115]
[1758914640410,0.7385,4040.7,4040.6,0.44512]
[1758914640619,0.8675,4040.5,4040.4,0.69813]
[1758914640816,0.3134,4040.4,4040.1,3.2078]
[1758914641018,0.7385,4040.2,4040.1,3.2078]
[1758914641319,0.7385,4040.2,4040.1,0.69817]
[1758914642318,0.7385,4040.2,4040.1,0.44517]
[1758914642515,0.7385,4040.2,4040.1,0.65667]
[1758914643021,0.7385,4040.2,4040.1,0.44517]
[1758914643219,0.3354,4040.5,4040.4,0.65664]
[1758914643518,0.8675,4040.5,4040.4,0.44514]
[1758914643719,0.8675,4040.5,4040.4,0.69814]
[1758914646217,0.6488,4040.5,4040.4,1.11804]
[1758914646411,0.3134,4040.5,4040.4,1.42524]
[1758914647318,0.3134,4040.5,4040.4,1.11804]
[1758914647319,0.8621,4040.5,4040.4,1.11804]
[1758914649817,0.3334,4039.7,4039.5,0.87067]
[1758914650015,3.9669,4039.6,4039.5,0.87067]
[1758914650522,3.9669,4039.6,4039.5,0.37067]
[1758914650722,3.9669,4039.6,4038.8,0.00227428]
[1758914650723,0.7591,4038.9,4038.8,0.00227428]
[1758914650911,3.9669,4038.9,4038.8,0.00227428]
[1758914653119,0.7591,4038.9,4038.8,0.41587428]
[1758914654521,0.7591,4038.9,4038.8,0.21087428]
[1758914655221,0.7591,4038.9,4038.8,0.00227428]
[1758914655822,3.9669,4038.9,4038.8,0.00227428]
[1758914660222,3.9669,4038.9,4037.5,1.33297664]
[1758914660223,0.44543,4037.8,4037.5,1.33297664]
[1758914660421,1.11366,4037.5,4036.6,1.77719715]
[1758914660621,3.2078,4036.8,4035.5,0.0268]
[1758914660917,3.2078,4036.8,4036.0,0.1316]
[1758914660918,0.44561,4036.2,4036.0,0.1316]
[1758914661124,3.4618,4036.1,4036.0,0.1316]
[1758914661318,3.46357513,4036.1,4036.0,0.43986457]
[1758914664518,3.46357513,4036.1,4036.0,0.52886457]
[1758914665128,3.46357513,4036.1,4035.5,0.3322]
[1758914665332,3.2078,4035.6,4035.5,0.3322]
[1758914665621,3.2078,4035.6,4035.5,0.5408]
[1758914666217,3.2078,4035.6,4035.5,0.3351156]
[1758914669924,3.65347,4035.6,4035.2,0.3054]
[1758914670119,0.69968,4035.5,4035.1,0.3054]
[1758914670426,0.254,4035.5,4035.1,0.3054]
[1758914670829,0.4321,4034.7,4034.6,0.65437]
[1758914671130,0.254,4034.8,4034.6,0.86198024]
[1758914671331,0.254,4034.8,4034.7,0.85936]
[1758914671631,0.4714,4034.8,4034.7,0.85936]
[1758914672923,0.4714,4034.8,4034.7,1.16476]
[1758914673325,0.2174,4034.8,4034.7,1.16476]
[1758914677030,0.2174,4034.8,4033.6,0.3054]
[1758914677031,0.2147,4033.7,4033.6,0.3054]
[1758914677235,4.2193,4033.7,4033.6,0.3054]
[1758914677424,4.2193,4033.7,4033.2,0.3054]
[1758914677628,4.2193,4033.7,4033.1,0.3054]
[1758914677934,3.2078,4033.2,4033.1,1.16494]
[1758914678136,3.21062753,4033.2,4033.1,1.16706169]
[1758914680337,3.64272753,4033.2,4033.1,0.72112169]
[1758914680636,4.22212753,4033.2,4033.1,0.72112169]
[1758914680827,3.89672753,4033.2,4033.1,0.72112169]
[1758914681934,0.68892753,4033.2,4033.1,0.72112169]
[1758914682131,0.00282753,4033.2,4033.1,0.72112169]
[1758914682442,0.00282753,4033.2,4033.1,1.16706169]
[1758914683236,0.21552753,4033.2,4033.1,1.16706169]
[1758914684242,0.00282753,4033.2,4033.1,1.16706169]
[1758914686040,0.43352753,4033.2,4033.1,1.16706169]
[1758914686339,0.75982753,4033.2,4033.1,1.16706169]
[1758914686833,0.43352753,4033.2,4033.1,1.16706169]
[1758914687037,0.2127,4032.2,4032.1,0.3309]
[1758914687333,0.757,4032.2,4032.1,0.54]
[1758914687640,0.254,4032.4,4031.7,3.2078]
[1758914687641,0.4307,4031.9,4031.8,0.2091]
[1758914687843,0.4307,4031.9,4031.8,0.54]
[1758914688034,0.4307,4031.9,4031.8,0.54292982]
[1758914688438,0.757,4031.9,4031.8,0.54292982]
[1758914689326,0.4307,4031.9,4031.8,0.33382982]
[1758914689527,0.757,4031.9,4031.8,0.42973793]
[1758914689929,0.757,4031.9,4031.8,0.21202982]
[1758914690136,4.50013881,4031.9,4031.8,0.21202982]
[1758914690335,0.757,4031.1,4031.0,0.2091]
[1758914690537,4.75413881,4031.1,4031.0,0.2091]
[1758914691036,4.42783881,4031.1,4030.4,0.44624]
[1758914691342,0.757,4030.5,4030.4,0.87034]
[1758914691542,0.757,4030.5,4030.4,1.20394629]
[1758914691742,0.2127,4030.5,4030.4,1.20394629]
[1758914691938,3.4618,4031.1,4031.0,0.8783]
[1758914691939,3.2078,4031.1,4031.0,0.8783]
[1758914692139,4.2821888,4031.1,4031.0,0.8783]
[1758914692351,4.5001888,4031.1,4031.0,0.755]
[1758914693036,0.4307,4031.1,4031.0,0.8783]
[1758914693540,0.757,4031.5,4031.4,0.87023]
[1758914693740,1.54589552,4031.5,4031.4,0.755]
[1758914694641,6.67619552,4031.5,4030.5,0.1233]
[1758914694843,0.3263,4031.3,4030.6,0.3309]
[1758914695037,0.539,4031.3,4031.2,0.2091]
[1758914695238,1.29179211,4031.3,4031.2,0.755]
[1758914695437,0.4307,4031.3,4031.2,0.755]
[1758914695640,0.4667,4031.3,4031.2,0.755]
[1758914695841,1.011,4031.3,4031.2,0.755]
[1758914696739,0.4307,4031.3,4031.2,0.755]
[1758914696946,0.757,4031.3,4031.2,0.755]
[1758914697139,1.011,4031.3,4031.2,0.755]
[1758914698047,0.4667,4031.3,4031.2,0.755]
[1758914698348,0.793,4031.3,4031.2,0.755]
[1758914698748,1.011,4031.3,4031.2,0.755]
[1758914699842,1.011,4031.3,4031.0,0.44617]
[1758914700047,0.757,4031.2,4031.1,0.2091]
[1758914700349,0.757,4031.2,4031.1,0.755]
[1758914701346,0.757,4031.2,4031.1,1.20117]
[1758914701950,0.4307,4031.2,4031.1,1.20117]
[1758914702150,0.4307,4031.2,4030.5,1.23887]
[1758914702151,0.3263,4031.1,4030.5,0.3309]
[1758914702443,3.6385,4030.7,4030.6,0.755]
[1758914702651,3.6385,4030.7,4030.6,1.20122]
[1758914702652,3.2078,4030.7,4030.6,1.20122]
[1758914702854,0.8873,4030.5,4030.4,0.54270629]
[1758914703037,0.757,4030.5,4030.4,1.20394629]
[1758914703446,3.4628,4030.7,4030.6,0.44622]
[1758914703447,3.5341,4030.7,4030.6,0.44622]
[1758914703649,4.0018,4030.7,4030.6,1.20122]
[1758914703844,3.9648,4030.7,4030.6,1.20122]
[1758914704045,3.9648,4030.7,4030.6,0.755]
[1758914704444,3.9648,4030.7,4030.6,1.20122]
[1758914705053,1.2455,4032.0,4031.1,1.20117]
[1758914705054,3.4205,4031.2,4031.1,1.20117]
[1758914705245,3.95416166,4031.2,4031.1,1.20117]
[1758914705556,3.95416166,4031.2,4031.1,0.2091]
[1758914705557,4.49846166,4031.2,4031.1,0.2091]
[1758914705851,4.49846166,4031.2,4031.0,0.44617]
[1758914706045,0.96166166,4031.1,4031.0,0.66397]
[1758914706251,1.29406166,4031.1,4031.0,0.44618]
[1758914706449,0.1326,4031.0,4030.9,0.66398]
[1758914706649,1.34926166,4031.0,4030.9,0.98578]
[1758914706952,1.21666166,4031.0,4030.9,1.19828]
[1758914707152,1.54906166,4031.0,4030.9,1.19828]
[1758914707544,1.29406166,4031.0,4030.9,1.19828]
[1758914707744,0.96166166,4031.0,4030.9,1.19828]
[1758914707952,1.54906166,4031.0,4030.9,1.19828]
[1758914708153,1.68166166,4031.0,4030.9,0.98578]
[1758914708352,1.68166166,4031.0,4030.9,0.66398]
[1758914708652,1.68166166,4031.0,4030.9,0.44618]
[1758914709054,1.68166166,4031.0,4030.9,0.66398]
[1758914709346,1.68166166,4031.0,4030.9,0.98578]
[1758914709553,1.54906166,4031.0,4030.9,1.19828]
[1758914710447,1.68166166,4031.0,4030.9,1.19828]
[1758914711954,1.54906166,4031.0,4030.9,1.19828]
[1758914712157,1.21666166,4031.0,4030.9,1.19828]
[1758914713153,0.96166166,4031.0,4030.9,1.19828]
[1758914713653,0.74946166,4031.0,4030.9,1.19828]
[1758914714357,0.53366166,4031.0,4030.9,1.19828]
[1758914714848,0.75666166,4031.0,4030.9,1.19828]
[1758914715050,1.30696166,4031.0,4030.9,1.19828]
[1758914715556,0.98156166,4031.0,4030.9,1.19828]
[1758914715957,0.75666166,4031.0,4030.9,1.19828]
[1758914716462,0.53366166,4031.0,4030.9,1.19828]
[1758914718748,3.2078,4031.7,4031.6,1.20341]
[1758914718749,4.2351,4031.7,4031.6,1.20341]
[1758914719054,4.2351,4031.7,4031.0,1.24993]
[1758914719055,4.2351,4031.7,4031.0,0.3312]
[1758914719254,0.7733,4031.4,4031.3,0.44614]
[1758914719446,1.0283,4031.4,4031.3,0.44614]
[1758914721959,0.8034,4031.4,4031.3,0.98614]
[1758914722150,1.0283,4031.4,4031.3,1.20344]
[1758914723052,0.7733,4031.4,4031.3,1.20344]
[1758914723258,0.7019,4031.4,4031.3,1.20344]
[1758914723851,1.0273,4031.4,4031.3,1.20344]
[1758914724562,3.9097,4031.7,4031.6,0.87221]
[1758914724764,3.9097,4031.7,4031.6,1.20341]
[1758914724765,4.2351,4031.7,4031.6,1.20341]
[1758914725258,4.2351,4031.7,4031.6,0.87221]
[1758914725861,4.2351,4031.7,4031.6,1.20341]
[1758914727161,3.2078,4031.7,4031.6,2.62793549]
[1758914727354,3.9811,4031.7,4031.6,2.62793549]
[1758914730757,3.4308,4031.7,4031.6,2.62793549]
[1758914731778,3.7562,4031.7,4031.6,2.62793549]
[1758914732364,3.9811,4031.7,4031.5,0.44612]
[1758914732563,3.9811,4031.7,4031.6,1.20341]
[1758914734663,3.9811,4031.7,4031.6,0.87221]
[1758914735059,3.9811,4031.7,4031.6,0.2088]
[1758914735565,3.9811,4031.7,4031.6,0.65491]
[1758914736069,3.9811,4031.7,4031.4,0.3312]
[1758914736262,0.7733,4031.5,4031.4,0.98613]
[1758914736761,0.7733,4031.5,4031.4,1.20343]
[1758914738160,0.9046,4031.5,4031.4,0.44613]
[1758914738367,0.9046,4031.5,4031.4,0.65493]
[1758914738865,0.9046,4031.5,4031.4,0.98613]
[1758914739169,0.9046,4031.5,4031.4,1.20343]
[1758914739469,0.7733,4031.5,4031.4,1.20343]
[1758914739667,0.8024,4031.6,4031.5,1.33792]
[1758914740566,3.4618,4032.2,4032.1,0.44606]
[1758914740768,3.7562,4032.2,4032.1,2.62788549]
[1758914741470,3.7562,4032.2,4032.1,1.20336]
[1758914742670,3.7562,4032.2,4032.1,1.45736]
[1758914742671,3.4308,4032.2,4032.1,1.45736]
[1758914742868,3.7395,4032.2,4032.1,1.45736]
[1758914743168,0.7381,4032.6,4032.5,0.7587]
[1758914743479,1.26128434,4032.6,4032.5,1.20471]
[1758914743872,0.2083,4032.6,4032.5,1.59191]
[1758914744066,0.8707,4033.0,4032.9,0.99327]
[1758914744270,1.39404703,4033.0,4032.9,0.99327]
[1758914745070,1.39404703,4033.0,4032.9,0.2137]
[1758914745671,1.39404703,4033.0,4032.9,0.65967]
[1758914745872,0.8707,4033.0,4032.9,0.99327]
[1758914746571,0.8707,4033.0,4032.9,1.20467]
[1758914746971,0.2083,4033.0,4032.9,1.20467]
[1758914747267,3.67292753,4033.2,4033.1,1.20464]
[1758914747474,4.20272753,4033.2,4033.1,1.20464]
[1758914747666,0.126,4033.0,4032.9,0.44596]
[1758914747866,0.8641,4033.0,4032.9,0.44596]
[1758914748167,0.8641,4033.0,4032.9,0.99326]
[1758914748766,0.2083,4032.3,4032.2,0.4251]
[1758914748965,0.7381,4032.3,4032.2,1.20474]
[1758914749172,0.7381,4032.3,4032.2,2.97896803]
[1758914749372,0.7381,4032.3,4032.2,1.45874]
[1758914749970,0.4294,4032.3,4032.2,1.45874]
[1758914750176,0.7381,4032.3,4032.2,1.20474]
[1758914750669,0.7381,4032.3,4032.2,1.45874]
[1758914750870,0.7381,4032.3,4032.2,0.65974]
[1758914751075,0.7381,4032.3,4032.2,0.44604]
[1758914751268,0.7381,4032.3,4032.2,0.99334]
[1758914752165,0.7381,4032.3,4032.2,1.20474]
[1758914752675,0.4294,4031.9,4031.8,0.44609]
[1758914752975,0.7381,4031.9,4031.8,0.44609]